lending/lending_fUSD_20241025
["ID","MTS","AMOUNT","RATE_DAILY","PERIOD"]
[340810803,1729866648898,-671.69,0.00052328,120]
[340810805,1729866648907,-500.0,0.00052328,120]
[340810807,1729866648917,-500.0,0.00052328,120]
[340810809,1729866648927,-500.0,0.00052328,7]
[340810811,1729866648938,-1343.15,0.00052328,120]
[340810813,1729866648948,-642.22,0.00052328,120]
[340810815,1729866648958,-800.27,0.00052328,120]
[340810817,1729866648968,-500.0,0.00052328,120]
[340810819,1729866648978,-1556.19,0.00052328,120]
[340810821,1729866648988,-1834.7,0.00052328,120]
[340810823,1729866648999,-1599.54,0.00052328,120]
[340810825,1729866649009,-540.35,0.00052328,120]
[340810827,1729866649019,-500.0,0.00052328,120]
[340810828,1729866649029,-500.0,0.00052328,120]
[340810830,1729866649039,-6179.67,0.00052328,120]
[340810832,1729866649049,-500.0,0.00052328,120]
[340810834,1729866649059,-2258.98,0.00052328,4]
[340810836,1729866649069,-500.0,0.00052328,2]
[340810838,1729866649079,-500.0,0.00052328,120]
[340810840,1729866649090,-1000.0,0.00052328,120]
[340810842,1729866649101,-500.0,0.00052328,120]
[340810844,1729866649111,-500.0,0.00052328,120]
[340810846,1729866649122,-612.9,0.00052328,120]
[340810848,1729866649131,-500.0,0.00052328,120]
[340810850,1729866649143,-2922.63,0.00052328,120]
[340810852,1729866649153,-500.0,0.00052328,120]
[340810854,1729866649163,-500.0,0.00052328,120]
[340810856,1729866649173,-539.02702652,0.00052328,120]
[340810858,1729866649183,-500.0,0.00052328,120]
[340810860,1729866649193,-500.0,0.00052328,120]
[340810862,1729866649203,-500.0,0.00052328,120]
[340810864,1729866649213,-3301.62,0.00052328,120]
[340810866,1729866649222,-500.0,0.00052328,120]
[340810868,1729866649233,-1319.19,0.00052328,120]
[340810870,1729866649244,-2091.41,0.00052328,120]
[340810872,1729866649254,-500.0,0.00052328,120]
[340810874,1729866649264,-518.84,0.00052328,120]
[340810876,1729866649273,-500.0,0.00052328,120]
[340810878,1729866649283,-500.0,0.00052328,120]
[340810880,1729866649293,-500.0,0.00052354,5]
[340810882,1729866649305,-11399.90197655,0.00052363,30]
[340810884,1729866649315,-12500.0,0.00052375,120]
[340810886,1729866649325,-150.0,0.000524,40]
[340810889,1729866649335,-317.98,0.000524,120]
[340810890,1729866649345,-998.64,0.000524,120]
[340810892,1729866649355,-508.26077932,0.00052499,2]
[340810895,1729866649365,-990.7046045,0.00052499,2]
[340810897,1729866649375,-1193.7698051,0.00052499,2]
[340810898,1729866649385,-1509.5051843,0.00052499,2]
[340810901,1729866649395,-500.0,0.00052499,120]
[340810903,1729866649405,-360502.62448803,0.000525,120]
[340810905,1729866649415,-30000.0,0.000525,120]
[340810907,1729866649424,-11558.55,0.000525,120]
[340810908,1729866649434,-150.31,0.00052535,120]
[340810910,1729866649445,-200.0,0.00052564,15]
[340810913,1729866649454,-374.32,0.00052578,2]
[340810915,1729866649464,-500.0,0.00052601,120]
[340810917,1729866649474,-1223.67,0.00052602,120]
[340810919,1729866649484,-500.0,0.00052602,120]
[340810921,1729866649499,-500.0,0.00052602,120]
[340810923,1729866649510,-500.0,0.00052602,120]
[340810925,1729866649520,-500.0,0.00052602,120]
[340810927,1729866649530,-500.0,0.00052602,120]
[340810929,1729866649540,-500.0,0.00052602,120]
[340810931,1729866649550,-500.0,0.00052602,120]
[340810933,1729866649560,-500.0,0.00052602,120]
[340810935,1729866649570,-887.29,0.00052602,120]
[340810937,1729866649579,-684.69,0.00052602,120]
[340810939,1729866649589,-500.0,0.00052602,120]
[340810941,1729866649599,-500.0,0.00052602,120]
[340810943,1729866649608,-500.0,0.00052602,120]
[340810945,1729866649618,-500.0,0.00052602,120]
[340810947,1729866649628,-500.0,0.00052602,120]
[340810949,1729866649638,-500.0,0.00052602,120]
[340810951,1729866649647,-500.0,0.00052602,120]
[340810953,1729866649657,-614.42422941,0.00052602,120]
[340810955,1729866649668,-500.0,0.00052602,120]
[340810957,1729866649678,-500.0,0.00052602,120]
[340810959,1729866649688,-20000.0,0.00052602,2]
[340810961,1729866649698,-368.63065098,0.00052602,120]
[340810963,1729866649709,-500.0,0.00052602,120]
[340810965,1729866649719,-1603.99,0.00052602,120]
[340810968,1729866649729,-500.0,0.00052602,120]
[340810970,1729866649741,-500.0,0.00052602,2]
[340810971,1729866649751,-500.0,0.00052602,120]
[340810973,1729866649761,-1069.19,0.00052602,120]
[340810975,1729866649771,-500.0,0.00052602,120]
[340810977,1729866649780,-500.0,0.00052602,120]
[340810979,1729866649790,-1219.66,0.00052602,120]
[340810981,1729866649800,-500.0,0.00052602,120]
[340810984,1729866649810,-595.61,0.00052602,120]
[340810986,1729866649819,-803.59,0.00052602,120]
[340810988,1729866649829,-511.03,0.00052602,120]
[340810990,1729866649839,-500.0,0.00052602,120]
[340810992,1729866649849,-500.0,0.00052602,120]
[340810994,1729866649860,-500.0,0.00052602,120]
[340810996,1729866649870,-804.6,0.00052602,120]
[340810998,1729866649880,-500.0,0.00052602,120]
[340811000,1729866649890,-488.53616679,0.00052602,120]
[340811002,1729866649900,-500.0,0.00052602,120]
[340811004,1729866649911,-500.0,0.00052602,120]
[340811006,1729866649922,-500.0,0.00052602,120]
[340811008,1729866649933,-500.0,0.00052602,120]
[340811010,1729866649944,-500.0,0.00052602,120]
[340811013,1729866649956,-1522.61,0.00052602,120]
[340811015,1729866649965,-681.96,0.00052602,120]
[340811017,1729866649977,-500.0,0.00052602,120]
[340811019,1729866649986,-500.0,0.00052602,120]
[340811021,1729866649998,-1145.82,0.00052602,120]
[340811023,1729866650009,-5122.33,0.00052602,120]
[340811036,1729866650127,-582.20979357,0.00052602,120]
[340811038,1729866650137,-500.0,0.00052602,55]
[340811040,1729866650147,-500.0,0.00052602,120]
[340811042,1729866650156,-500.0,0.00052602,120]
[340811044,1729866650166,-655.32,0.00052602,120]
[340811046,1729866650176,-500.0,0.00052602,120]
[340811048,1729866650186,-385.58932487,0.00052602,120]
[340811050,1729866650195,-5230.31,0.00052602,120]
[340811052,1729866650205,-500.0,0.00052602,120]
[340811054,1729866650215,-5000.0,0.00052602,120]
[340811056,1729866650225,-22445.75,0.00052602,120]
[340811058,1729866650234,-500.0,0.00052602,120]
[340811060,1729866650245,-12679.49,0.00052602,120]
[340811061,1729866650254,-500.0,0.00052602,120]
[340811063,1729866650264,-500.0,0.00052602,120]
[340811066,1729866650274,-500.0,0.00052602,120]
[340811068,1729866650283,-500.0,0.00052602,120]
[340811070,1729866650293,-1800.42,0.00052602,120]
[340811072,1729866650307,-697.56,0.00052602,120]
[340811074,1729866650316,-500.0,0.00052602,120]
[340811076,1729866650326,-1405.83,0.00052602,120]
[340811078,1729866650335,-3337.84,0.00052602,120]
[340811080,1729866650347,-500.0,0.00052602,120]
[340811082,1729866650356,-500.0,0.00052602,120]
[340811084,1729866650366,-750.8,0.00052602,21]
[340811086,1729866650380,-677.34,0.00052602,7]
[340811088,1729866650391,-776.72,0.00052602,120]
[340811090,1729866650400,-240.25325967,0.00052602,120]
[340811092,1729866650410,-500.0,0.00052602,120]
[340811094,1729866650419,-2347.7,0.00052602,120]
[340811096,1729866650429,-666.05,0.00052602,120]
[340811098,1729866650439,-3048.28,0.00052602,120]
[340811100,1729866650448,-500.0,0.00052602,120]
[340811102,1729866650458,-775.41,0.00052602,120]
[340811104,1729866650468,-500.0,0.00052602,120]
[340811106,1729866650479,-500.0,0.00052602,120]
[340811108,1729866650488,-508.09,0.00052602,120]
[340811109,1729866650501,-808.75,0.00052602,120]
[340811110,1729866650511,-500.0,0.00052602,120]
[340811111,1729866650520,-1715.75,0.00052602,120]
[340811113,1729866650531,-500.0,0.00052602,120]
[340811115,1729866650540,-500.0,0.00052602,120]
[340811117,1729866650550,-2038.45,0.00052602,120]
[340811119,1729866650560,-500.0,0.00052602,120]
[340811121,1729866650569,-671.69,0.00052602,120]
[340811123,1729866650579,-500.0,0.00052602,120]
[340811125,1729866650589,-575.05362788,0.00052602,120]
[340811127,1729866650599,-500.0,0.00052602,7]
[340811129,1729866650610,-1343.15,0.00052602,120]
[340811131,1729866650619,-642.22,0.00052602,120]
[340811133,1729866650629,-800.27,0.00052602,120]
[340811135,1729866650639,-500.0,0.00052602,120]
[340811137,1729866650649,-1556.19,0.00052602,120]
[340811139,1729866650659,-1834.7,0.00052602,120]
[340811141,1729866650668,-1599.54,0.00052602,120]
[340811143,1729866650678,-500.0,0.00052602,120]
[340811145,1729866650688,-500.0,0.00052602,120]
[340811147,1729866650698,-6179.67,0.00052602,120]
[340811149,1729866650707,-500.0,0.00052602,120]
[340811152,1729866650717,-2258.98,0.00052602,4]
[340811154,1729866650727,-500.0,0.00052602,2]
[340811156,1729866650737,-500.0,0.00052602,120]
[340811158,1729866650749,-1000.0,0.00052602,120]
[340811160,1729866650758,-360.18,0.00052602,120]
[340811162,1729866650768,-500.0,0.00052602,120]
[340811164,1729866650778,-612.9,0.00052602,120]
[340811166,1729866650788,-500.0,0.00052602,120]
[340811168,1729866650798,-2922.63,0.00052602,120]
[340811170,1729866650808,-500.0,0.00052602,120]
[340811172,1729866650818,-500.0,0.00052602,120]
[340811174,1729866650827,-500.0,0.00052602,120]
[340811176,1729866650837,-500.0,0.00052602,120]
[340811178,1729866650846,-500.0,0.00052602,120]
[340811180,1729866650855,-3301.62,0.00052602,120]
[340811182,1729866650864,-500.0,0.00052602,120]
[340811184,1729866650873,-1319.19,0.00052602,120]
[340811186,1729866650883,-2091.41,0.00052602,120]
[340811188,1729866650892,-500.0,0.00052602,120]
[340811190,1729866650901,-518.84,0.00052602,120]
[340811192,1729866650911,-500.0,0.00052602,120]
[340811194,1729866650922,-500.0,0.00052602,120]
[340811196,1729866650931,-500.0,0.00052681,5]
[340811198,1729866650941,-500.0,0.0005269,5]
[340811200,1729866650950,-500.0,0.0005269,5]
[340811202,1729866650960,-392.80383529,0.00052757,2]
[340811204,1729866650970,-544.47921621,0.00052776,2]
[340811206,1729866650980,-188.08216854,0.00052776,2]
[340811208,1729866650989,-200.96230334,0.00052776,2]
[340811210,1729866651000,-160.73236078,0.00052776,2]
[340811212,1729866651009,-150.0,0.000528,120]
[340811214,1729866651019,-401.0,0.000528,41]
[340811216,1729866651029,-500.0,0.00052873,60]
[340811218,1729866651038,-500.0,0.00052875,120]
[340811220,1729866651047,-1223.67,0.00052876,120]
[340811222,1729866651057,-500.0,0.00052876,120]
[340811224,1729866651066,-500.0,0.00052876,120]
[340811226,1729866651075,-496.77418536,0.00052876,120]
[340811228,1729866651085,-500.0,0.00052876,120]
[340811230,1729866651094,-500.0,0.00052876,120]
[340811232,1729866651103,-500.0,0.00052876,120]
[340811234,1729866651113,-500.0,0.00052876,120]
[340811236,1729866651122,-498.84972765,0.00052876,120]
[340811238,1729866651131,-887.29,0.00052876,120]
[340811240,1729866651141,-684.69,0.00052876,120]
[340811242,1729866651150,-500.0,0.00052876,120]
[340811244,1729866651159,-500.0,0.00052876,120]
[340811246,1729866651169,-500.0,0.00052876,120]
[340811248,1729866651178,-500.0,0.00052876,120]
[340811250,1729866651187,-463.03283351,0.00052876,120]
[340811252,1729866651196,-500.0,0.00052876,120]
[340811254,1729866651205,-500.0,0.00052876,120]
[340811256,1729866651214,-500.0,0.00052876,120]
[340811257,1729866651224,-500.0,0.00052876,120]
[340811260,1729866651234,-20000.0,0.00052876,2]
[340811262,1729866651245,-500.0,0.00052876,120]
[340811264,1729866651255,-1603.99,0.00052876,120]
[340811266,1729866651264,-500.0,0.00052876,120]
[340811268,1729866651273,-500.0,0.00052876,2]
[340811270,1729866651283,-500.0,0.00052876,120]
[340811272,1729866651292,-1069.19,0.00052876,120]
[340811274,1729866651306,-591.29587392,0.00052876,120]
[340811276,1729866651316,-500.0,0.00052876,120]
[340811278,1729866651325,-1219.66,0.00052876,120]
[340811280,1729866651335,-500.0,0.00052876,120]
[340811282,1729866651344,-595.61,0.00052876,120]
[340811284,1729866651354,-803.59,0.00052876,120]
[340811286,1729866651363,-511.03,0.00052876,120]
[340811288,1729866651372,-500.0,0.00052876,120]
[340811290,1729866651382,-500.0,0.00052876,120]
[340811292,1729866651391,-500.0,0.00052876,120]
[340811294,1729866651400,-804.6,0.00052876,120]
[340811296,1729866651409,-500.0,0.00052876,120]
[340811298,1729866651418,-500.0,0.00052876,120]
[340811300,1729866651427,-500.0,0.00052876,120]
[340811302,1729866651437,-500.0,0.00052876,120]
[340811304,1729866651446,-188.35825834,0.00052876,120]
[340811306,1729866651455,-500.0,0.00052876,120]
[340811308,1729866651464,-1522.61,0.00052876,120]
[340811310,1729866651473,-681.96,0.00052876,120]
[340811312,1729866651482,-500.0,0.00052876,120]
[340811314,1729866651494,-500.0,0.00052876,120]
[340811316,1729866651503,-1145.82,0.00052876,120]
[340811318,1729866651514,-5122.33,0.00052876,120]
[340811320,1729866651523,-500.0,0.00052876,55]
[340811322,1729866651533,-500.0,0.00052876,120]
[340811324,1729866651543,-500.0,0.00052876,120]
[340811326,1729866651553,-655.32,0.00052876,120]
[340811327,1729866651562,-500.0,0.00052876,120]
[340811330,1729866651572,-5230.31,0.00052876,120]
[340811331,1729866651582,-500.0,0.00052876,120]
[340811333,1729866651592,-5000.0,0.00052876,120]
[340811335,1729866651602,-22445.75,0.00052876,120]
[340811337,1729866651612,-500.0,0.00052876,120]
[340811339,1729866651621,-12679.49,0.00052876,120]
[340811341,1729866651630,-336.98314945,0.00052876,120]
[340811343,1729866651639,-500.0,0.00052876,120]
[340811345,1729866651649,-500.0,0.00052876,120]
[340811347,1729866651659,-500.0,0.00052876,120]
[340811349,1729866651668,-1800.42,0.00052876,120]
[340811351,1729866651678,-697.56,0.00052876,120]
[340811353,1729866651687,-500.0,0.00052876,120]
[340811355,1729866651696,-1405.83,0.00052876,120]
[340811357,1729866651706,-3337.84,0.00052876,120]
[340811359,1729866651715,-500.0,0.00052876,120]
[340811361,1729866651725,-500.0,0.00052876,120]
[340811363,1729866651734,-750.8,0.00052876,21]
[340811365,1729866651746,-677.34,0.00052876,7]
[340811367,1729866651756,-776.72,0.00052876,120]
[340811369,1729866651765,-500.0,0.00052876,120]
[340811371,1729866651775,-2347.7,0.00052876,120]
[340811373,1729866651784,-666.05,0.00052876,120]
[340811375,1729866651793,-3048.28,0.00052876,120]
[340811377,1729866651803,-500.0,0.00052876,120]
[340811379,1729866651813,-775.41,0.00052876,120]
[340811381,1729866651823,-491.015052,0.00052876,120]
[340811383,1729866651832,-500.0,0.00052876,120]
[340811385,1729866651841,-508.09,0.00052876,120]
[340811387,1729866651851,-808.75,0.00052876,120]
[340811389,1729866651860,-500.0,0.00052876,120]
[340811391,1729866651869,-1715.75,0.00052876,120]
[340811393,1729866651878,-402.69315807,0.00052876,120]
[340811395,1729866651888,-500.0,0.00052876,120]
[340811397,1729866651898,-2038.45,0.00052876,120]
[340811399,1729866651907,-500.0,0.00052876,120]
[340811401,1729866651916,-671.69,0.00052876,120]
[340811403,1729866651925,-500.0,0.00052876,120]
[340811405,1729866651935,-500.0,0.00052876,7]
[340811408,1729866651945,-1343.15,0.00052876,120]
[340811410,1729866651955,-642.22,0.00052876,120]
[340811412,1729866651966,-800.27,0.00052876,120]
[340811414,1729866651977,-500.0,0.00052876,120]
[340811416,1729866651987,-1556.19,0.00052876,120]
[340811418,1729866651999,-1834.7,0.00052876,120]
[340811420,1729866652009,-1599.54,0.00052876,120]
[340811422,1729866652018,-500.0,0.00052876,120]
[340811424,1729866652028,-500.0,0.00052876,120]
[340811426,1729866652037,-6179.67,0.00052876,120]
[340811428,1729866652046,-500.0,0.00052876,120]
[340811430,1729866652055,-2258.98,0.00052876,4]
[340811432,1729866652065,-500.0,0.00052876,2]
[340811434,1729866652074,-500.0,0.00052876,120]
[340811436,1729866652083,-239.07735564,0.00052876,120]
[340811438,1729866652092,-500.0,0.00052876,120]
[340811451,1729866652206,-612.9,0.00052876,120]
[340811453,1729866652217,-500.0,0.00052876,120]
[340811455,1729866652227,-2922.63,0.00052876,120]
[340811457,1729866652237,-500.0,0.00052876,120]
[340811459,1729866652247,-210.30355657,0.00052876,120]
[340811461,1729866652257,-500.0,0.00052876,120]
[340811463,1729866652266,-500.0,0.00052876,120]
[340811465,1729866652275,-500.0,0.00052876,120]
[340811467,1729866652285,-3301.62,0.00052876,120]
[340811468,1729866652294,-507.34883107,0.00052876,120]
[340811469,1729866652307,-1319.19,0.00052876,120]
[340811470,1729866652317,-2091.41,0.00052876,120]
[340811471,1729866652326,-500.0,0.00052876,120]
[340811472,1729866652335,-518.84,0.00052876,120]
[340811473,1729866652346,-500.0,0.00052876,120]
[340811474,1729866652356,-500.0,0.00052876,120]
[340811475,1729866652365,-150.0,0.00052877,60]
[340811476,1729866652375,-297.94,0.00052877,60]
[340811477,1729866652384,-150.0,0.00052877,60]
[340811478,1729866652394,-150.0,0.00052877,60]
[340811479,1729866652402,-153.72,0.00052877,60]
[340811480,1729866652411,-150.0,0.00052877,60]
[340811481,1729866652421,-150.0,0.00052877,60]
[340811482,1729866652431,-150.0,0.00052877,60]
[340811483,1729866652440,-150.0,0.00052877,60]
[340811484,1729866652450,-150.0,0.00052877,60]
[340811486,1729866652459,-150.0,0.00052877,60]
[340811488,1729866652469,-150.0,0.00052877,60]
[340811489,1729866652478,-150.0,0.00052877,60]
[340811490,1729866652487,-150.0,0.00052877,60]
[340811491,1729866652498,-150.0,0.00052877,60]
[340811492,1729866652508,-731.37,0.00052877,60]
[340811493,1729866652518,-150.0,0.00052877,60]
[340811494,1729866652527,-150.0,0.00052877,60]
[340811495,1729866652537,-150.0,0.00052877,60]
[340811496,1729866652548,-150.0,0.00052877,60]
[340811497,1729866652558,-150.0,0.00052877,60]
[340811498,1729866652568,-150.0,0.00052877,60]
[340811499,1729866652578,-150.0,0.00052877,60]
[340811500,1729866652588,-150.0,0.00052877,60]
[340811501,1729866652597,-150.0,0.00052877,60]
[340811502,1729866652607,-152.48,0.00052877,60]
[340811503,1729866652616,-150.0,0.00052877,60]
[340811504,1729866652626,-152.54,0.00052877,60]
[340811505,1729866652637,-150.0,0.00052877,60]
[340811506,1729866652646,-150.0,0.00052877,60]
[340811507,1729866652656,-150.0,0.00052877,60]
[340811508,1729866652666,-150.0,0.00052877,60]
[340811509,1729866652676,-8013.3327266,0.0005289,30]
[340811510,1729866652686,-150.0,0.000529,40]
[340811511,1729866652695,-571.1133374,0.00053,2]
[340811512,1729866652705,-23277.0,0.00053,120]
[340811513,1729866652715,-209.01905423,0.0005305,2]
[340811514,1729866652726,-900.0,0.00053073,60]
[340811515,1729866652736,-500.0,0.00053082,60]
[340811516,1729866652748,-200.0,0.0005309,15]
[340811517,1729866652758,-1334.0305301,0.00053114,2]
[340811518,1729866652767,-1615.5235065,0.00053114,2]
[340811519,1729866652777,-2042.8068276,0.00053114,2]
[340811520,1729866652787,-1223.67,0.0005315,120]
[340811521,1729866652797,-500.0,0.0005315,120]
[340811522,1729866652807,-500.0,0.0005315,120]
[340811523,1729866652816,-333.43893434,0.0005315,120]
[340811524,1729866652826,-261.10682434,0.0005315,120]
[340811525,1729866652835,-500.0,0.0005315,120]
[340811526,1729866652845,-500.0,0.0005315,120]
[340811527,1729866652854,-887.29,0.0005315,120]
[340811528,1729866652863,-684.69,0.0005315,120]
[340811529,1729866652873,-500.0,0.0005315,120]
[340811530,1729866652883,-500.0,0.0005315,120]
[340811531,1729866652892,-500.0,0.0005315,120]
[340811532,1729866652901,-500.0,0.0005315,120]
[340811533,1729866652911,-500.0,0.0005315,120]
[340811534,1729866652921,-478.526712,0.0005315,120]
[340811535,1729866652930,-500.0,0.0005315,120]
[340811536,1729866652940,-500.0,0.0005315,120]
[340811537,1729866652949,-3031.74663532,0.0005315,2]
[340811538,1729866652959,-500.0,0.0005315,120]
[340811539,1729866652969,-1603.99,0.0005315,120]
[340811540,1729866652978,-500.0,0.0005315,120]
[340811541,1729866652988,-500.0,0.0005315,2]
[340811542,1729866652999,-500.0,0.0005315,120]
[340811543,1729866653009,-1069.19,0.0005315,120]
[340811544,1729866653018,-497.74975,0.0005315,120]
[340811545,1729866653028,-1219.66,0.0005315,120]
[340811546,1729866653038,-500.0,0.0005315,120]
[340811547,1729866653047,-595.61,0.0005315,120]
[340811548,1729866653057,-803.59,0.0005315,120]
[340811549,1729866653067,-511.03,0.0005315,120]
[340811550,1729866653076,-500.0,0.0005315,120]
[340811551,1729866653086,-500.0,0.0005315,120]
[340811552,1729866653095,-500.0,0.0005315,120]
[340811553,1729866653105,-804.6,0.0005315,120]
[340811554,1729866653115,-221.18191303,0.0005315,120]
[340811555,1729866653125,-500.0,0.0005315,120]
[340811556,1729866653135,-500.0,0.0005315,120]
[340811557,1729866653145,-500.0,0.0005315,120]
[340811558,1729866653154,-500.0,0.0005315,120]
[340811559,1729866653164,-1522.61,0.0005315,120]
[340811560,1729866653174,-681.96,0.0005315,120]
[340811561,1729866653184,-500.0,0.0005315,120]
[340811562,1729866653193,-500.0,0.0005315,120]
[340811563,1729866653203,-1145.82,0.0005315,120]
[340811564,1729866653213,-5122.33,0.0005315,120]
[340811565,1729866653222,-500.0,0.0005315,55]
[340811566,1729866653233,-500.0,0.0005315,120]
[340811567,1729866653244,-500.0,0.0005315,120]
[340811568,1729866653254,-655.32,0.0005315,120]
[340811569,1729866653263,-313.17377684,0.0005315,120]
[340811570,1729866653273,-5230.31,0.0005315,120]
[340811571,1729866653282,-500.0,0.0005315,120]
[340811572,1729866653292,-5000.0,0.0005315,120]
[340811573,1729866653305,-22445.75,0.0005315,120]
[340811574,1729866653315,-500.0,0.0005315,120]
[340811575,1729866653326,-12679.49,0.0005315,120]
[340811576,1729866653335,-500.0,0.0005315,120]
[340811577,1729866653345,-500.0,0.0005315,120]
[340811578,1729866653357,-500.0,0.0005315,120]
[340811579,1729866653366,-1800.42,0.0005315,120]
[340811580,1729866653375,-697.56,0.0005315,120]
[340811581,1729866653385,-500.0,0.0005315,120]
[340811582,1729866653395,-1405.83,0.0005315,120]
[340811583,1729866653404,-3337.84,0.0005315,120]
[340811584,1729866653413,-500.0,0.0005315,120]
[340811585,1729866653423,-500.0,0.0005315,120]
[340811586,1729866653432,-750.8,0.0005315,21]
[340811587,1729866653442,-677.34,0.0005315,7]
[340811588,1729866653452,-776.72,0.0005315,120]
[340811589,1729866653461,-500.0,0.0005315,120]
[340811590,1729866653471,-2347.7,0.0005315,120]
[340811591,1729866653482,-666.05,0.0005315,120]
[340811592,1729866653491,-3048.28,0.0005315,120]
[340811593,1729866653505,-500.0,0.0005315,120]
[340811594,1729866653516,-775.41,0.0005315,120]
[340811595,1729866653526,-500.0,0.0005315,120]
[340811596,1729866653536,-508.09,0.0005315,120]
[340811597,1729866653546,-808.75,0.0005315,120]
[340811598,1729866653557,-499.89308435,0.0005315,120]
[340811599,1729866653567,-1715.75,0.0005315,120]
[340811600,1729866653577,-602.18551977,0.0005315,120]
[340811601,1729866653588,-2038.45,0.0005315,120]
[340811602,1729866653598,-500.0,0.0005315,120]
[340811603,1729866653608,-671.69,0.0005315,120]
[340811604,1729866653619,-500.0,0.0005315,120]
[340811605,1729866653628,-500.0,0.0005315,7]
[340811606,1729866653638,-1343.15,0.0005315,120]
[340811607,1729866653648,-642.22,0.0005315,120]
[340811608,1729866653657,-800.27,0.0005315,120]
[340811609,1729866653666,-500.0,0.0005315,120]
[340811610,1729866653676,-1556.19,0.0005315,120]
[340811611,1729866653685,-1834.7,0.0005315,120]
[340811612,1729866653695,-1599.54,0.0005315,120]
[340811613,1729866653705,-500.0,0.0005315,120]
[340811614,1729866653714,-500.0,0.0005315,120]
[340811615,1729866653724,-6179.67,0.0005315,120]
[340811616,1729866653735,-500.0,0.0005315,120]
[340811617,1729866653746,-2258.98,0.0005315,4]
[340811618,1729866653756,-500.0,0.0005315,2]
[340811619,1729866653765,-581.47283018,0.0005315,120]
[340811620,1729866653775,-500.0,0.0005315,120]
[340811621,1729866653784,-612.9,0.0005315,120]
[340811622,1729866653794,-500.0,0.0005315,120]
[340811623,1729866653804,-2922.63,0.0005315,120]
[340811624,1729866653813,-500.0,0.0005315,120]
[340811625,1729866653823,-500.0,0.0005315,120]
[340811626,1729866653833,-500.0,0.0005315,120]
[340811627,1729866653843,-500.0,0.0005315,120]
[340811628,1729866653852,-3301.62,0.0005315,120]
[340811629,1729866653861,-1319.19,0.0005315,120]
[340811630,1729866653871,-2091.41,0.0005315,120]
[340811631,1729866653881,-500.0,0.0005315,120]
[340811632,1729866653891,-518.84,0.0005315,120]
[340811633,1729866653900,-500.0,0.0005315,120]
[340811634,1729866653910,-500.0,0.0005315,120]
[340811635,1729866653919,-150.0,0.00053151,60]
[340811636,1729866653929,-150.0,0.00053151,60]
[340811637,1729866653939,-150.0,0.00053151,60]
[340811638,1729866653948,-2373.58934159,0.00053167,15]
[340811639,1729866653957,-900.0,0.00053167,60]
[340811640,1729866653966,-167.0,0.00053191,2]
[340811641,1729866653976,-317.98,0.000532,120]
[340811642,1729866653986,-900.0,0.00053306,60]
[340811643,1729866653997,-442.6996362,0.0005331,2]
[340811644,1729866654007,-800.0,0.00053323,60]
[340811645,1729866654017,-208.0,0.0005337,30]
[340811646,1729866654027,-900.0,0.00053371,60]
[340811647,1729866654036,-274.492609,0.000534,40]